Workbook

Sheet 全市汇总
A1: 大冶市2025年度天然商品林停伐管护补助资金兑现汇总表
A2: 单位：大冶市自然资源和规划局
A3: 乡镇 | B3: 天然商品林 | E3: 备注
B4: 面积（亩） | C4: 兑现标准 （元/亩） | D4: 金额 （元）
A5: 保安镇 | B5: 894.77 | C5: 16 | D5: =B5*C5 -> 14316.32 | E5: 说明：1、中央资金（提前批49万元）鄂财环发[2024]75号和中央资金（第二批88万元）鄂财环发[2025]25号文件收到天然林停伐管护补助资金137万元。 2、鄂财环发[2024]87号节余4123.13元，鄂财环发[2024]75号节余16557.12元，合计20680.25元；鄂财环发[2024]87号结余资金49319.75元，合计70000元。全市天然林停伐面积9万亩，需要补助资金144万元。
A6: 陈贵镇 | B6: 4135.33 | C6: 16 | D6: =B6*C6 -> 66165.28
A7: 大箕铺镇 | B7: 3242.7 | C7: 16 | D7: 51883.20
A8: 金湖街道办事处 | B8: 46.7 | C8: 16 | D8: 747.20
A9: 金牛镇 | B9: 4358.57 | C9: 16 | D9: 69737.12
A10: 金山店镇 | B10: 2695.33 | C10: 16 | D10: 43125.28
A11: 灵乡镇 | B11: 39617.55 | C11: 16 | D11: 633880.80
A12: 刘仁八镇 | B12: 11569.36 | C12: 16 | D12: 185109.76
A13: 茗山乡 | B13: 6795.51 | C13: 16 | D13: 108728.16
A14: 殷祖镇 | B14: 16644.18 | C14: 16 | D14: 266306.88
A15: 国有林场管理站 | B15: 1200 | C15: 10 | D15: 0.00
A16: 合计 | B16: =SUM(B5:B15) -> 91200 | D16: =SUM(D5:D15) -> 1440000.00
A17: 审核人： 分管负责人签字： 单位负责人签字：

Sheet 公益林 (除去汪仁、金山街道) (hidden)
A1: 大冶市2024年度生态公益林补偿资金兑现汇总表
A2: 单位：大冶市自然资源和规划局
A3: 乡镇 | B3: 国家级 | E3: 备注
B4: 面积 （亩） | C4: 兑现标准 （元/亩） | D4: 金额 （元）
A5: 保安镇 | B5: 3037.61 | C5: 16 | D5: =B5*C5 -> 48601.76
A6: 陈贵镇 | B6: 17302.49 | C6: 16 | D6: 276839.84
A7: 大箕铺镇 | B7: 11755.57 | C7: 16 | D7: 188089.12
A8: 东风农场 | B8: 54.48 | C8: 16 | D8: 871.68
A9: 还地桥镇 | B9: 4324.71 | C9: 16 | D9: 69195.36
A10: 金湖街道办事处 | B10: 17093.36 | C10: 16 | D10: 273493.76
A11: 金牛镇 | B11: 5017.92 | C11: 16 | D11: 80286.72
A12: 金山店镇 | B12: 25.42 | C12: 16 | D12: 406.72
A13: 灵乡镇 | B13: 24475.19 | C13: 16 | D13: 391603.04
A14: 刘仁八镇 | B14: 15330.24 | C14: 16 | D14: 245283.84
A15: 罗桥街道办事处 | B15: 86.89 | C15: 16 | D15: 1390.24
A16: 茗山乡 | B16: 5914.81 | C16: 16 | D16: 94636.96
A17: 殷祖镇 | B17: 19809.92 | C17: 16 | D17: 316958.72
A18: 合计 | B18: =SUM(B5:B17) -> 124228.61 | D18: =SUM(D5:D17) -> 1987657.76
A19: 审核人： 分管负责人签字： 单位负责人签字：

Sheet 天然林
A1: 大冶市2025年度天然商品林停伐管护补助资金兑现明细表
H2: 单位：亩、元
A3: 乡镇 | B3: 村 | C3: 图编号 | D3: 小地名 | E3: 林权 权利人 | F3: 面积 | G3: 兑现 标准 | H3: 兑现 金额 | I3: 权利人 账户 | J3: 备注 | K3: 权属
A4: 茗山乡 | B4: 京南村 | C4: 1690 | D4: 大陈三省湾 | E4: 9组 | F4: 15.32 | G4: 16 | H4: =ROUND(F4*G4,2) -> 245.12 | I4: 公户 | K4: 集体
A5: 茗山乡 | B5: 京南村 | C5: 1691 | D5: 大陈三省湾 | E5: 9组 | F5: 2.1 | G5: 16 | H5: 33.6 | I5: 公户 | K5: 集体
A6: 茗山乡 | B6: 京南村 | C6: 1692 | D6: 小洪余湾 | E6: 7组 | F6: 2 | G6: 16 | H6: 32 | I6: 公户 | K6: 集体
A7: 茗山乡 | B7: 京南村 | C7: 1693 | D7: 小洪余湾 | E7: 7组 | F7: 64.89 | G7: 16 | H7: 1038.24 | I7: 公户 | K7: 集体
A8: 茗山乡 | B8: 京南村 | C8: 1694 | D8: 小洪余湾 | E8: 7组 | F8: 28.37 | G8: 16 | H8: 453.92 | I8: 公户 | K8: 集体
A9: 茗山乡 | B9: 京南村 | C9: 1695 | D9: 小洪余湾 | E9: 7组 | F9: 2.79 | G9: 16 | H9: 44.64 | I9: 公户 | K9: 集体
A10: 茗山乡 | B10: 京南村 | C10: 1696 | D10: 细陈三省湾 | E10: 8组 | F10: 2.61 | G10: 16 | H10: 41.76 | I10: 公户 | K10: 集体
A11: 茗山乡 | B11: 京南村 | C11: 1697 | D11: 细陈三省湾 | E11: 8组 | F11: 1.74 | G11: 16 | H11: 27.84 | I11: 公户 | K11: 集体
A12: 茗山乡 | B12: 京南村 | C12: 1698 | D12: 小洪余湾 | E12: 7组 | F12: 3.27 | G12: 16 | H12: 52.32 | I12: 公户 | K12: 集体
A13: 茗山乡 | B13: 京南村 | C13: 1699 | D13: 大陈三省湾 | E13: 9组 | F13: 14.1 | G13: 16 | H13: 225.6 | I13: 公户 | K13: 集体
A14: 茗山乡 | B14: 京南村 | C14: 1700 | D14: 大陈三省湾 | E14: 9组 | F14: 2.19 | G14: 16 | H14: 35.04 | I14: 公户 | K14: 集体
A15: 茗山乡 | B15: 京南村 | C15: 1701 | D15: 大陈三省湾 | E15: 9组 | F15: 10.39 | G15: 16 | H15: 166.24 | I15: 公户 | K15: 集体
A16: 茗山乡 | B16: 京南村 | C16: 1702 | D16: 大陈三省湾 | E16: 9组 | F16: 2.47 | G16: 16 | H16: 39.52 | I16: 公户 | K16: 集体
A17: 茗山乡 | B17: 京南村 | C17: 1703 | D17: 大陈三省湾 | E17: 9组 | F17: 2.19 | G17: 16 | H17: 35.04 | I17: 公户 | K17: 集体
A18: 茗山乡 | B18: 九龙村 | C18: 1704 | D18: 大谈湾山 | E18: 3组 | F18: 17.27 | G18: 16 | H18: 276.32 | I18: 公户 | K18: 集体
A19: 茗山乡 | B19: 九龙村 | C19: 1705 | D19: 香铺尔湾山 | E19: 3组 | F19: 1.52 | G19: 16 | H19: 24.32 | I19: 公户 | K19: 集体
A20: 茗山乡 | B20: 九龙村 | C20: 1706 | D20: 香铺尔湾山 | E20: 3组 | F20: 24.27 | G20: 16 | H20: 388.32 | I20: 公户 | K20: 集体
A21: 茗山乡 | B21: 九龙村 | C21: 1707 | D21: 大谈湾山 | E21: 3组 | F21: 10.1 | G21: 16 | H21: 161.6 | I21: 公户 | K21: 集体
A22: 茗山乡 | B22: 九龙村 | C22: 1708 | D22: 陈九龙湾后背山 | E22: 9组 | F22: 13.19 | G22: 16 | H22: 211.04 | I22: 公户 | K22: 集体
A23: 茗山乡 | B23: 九龙村 | C23: 1709 | D23: 陈九龙湾后背山 | E23: 9组 | F23: 2.41 | G23: 16 | H23: 38.56 | I23: 公户 | K23: 集体
A24: 茗山乡 | B24: 九龙村 | C24: 1710 | D24: 陈九龙湾后背山 | E24: 9组 | F24: 3.77 | G24: 16 | H24: 60.32 | I24: 公户 | K24: 集体
A25: 茗山乡 | B25: 九龙村 | C25: 1711 | D25: 陈九龙湾后背山 | E25: 9组 | F25: 36.43 | G25: 16 | H25: 582.88 | I25: 公户 | K25: 集体
A26: 茗山乡 | B26: 九龙村 | C26: 1712 | D26: 陈九龙湾后背山 | E26: 9组 | F26: 7.05 | G26: 16 | H26: 112.8 | I26: 公户 | K26: 集体
A27: 茗山乡 | B27: 九龙村 | C27: 1713 | D27: 陈九龙湾后背山 | E27: 9组 | F27: 9.13 | G27: 16 | H27: 146.08 | I27: 公户 | K27: 集体
A28: 茗山乡 | B28: 九龙村 | C28: 1714 | D28: 陈九龙湾后背山 | E28: 9组 | F28: 4.27 | G28: 16 | H28: 68.32 | I28: 公户 | K28: 集体
A29: 茗山乡 | B29: 九龙村 | C29: 1715 | D29: 铺尔墩高节山 | E29: 7组 | F29: 23.87 | G29: 16 | H29: 381.92 | I29: 公户 | K29: 集体
A30: 茗山乡 | B30: 九龙村 | C30: 1716 | D30: 铺尔墩高节山 | E30: 7组 | F30: 17.44 | G30: 16 | H30: 279.04 | I30: 公户 | K30: 集体
A31: 茗山乡 | B31: 柯畈村 | C31: 1717 | D31: 乌龟山 | E31: 3、4组刘福八湾 | F31: 9.03 | G31: 16 | H31: 144.48 | I31: 公户 | K31: 集体
A32: 茗山乡 | B32: 柯畈村 | C32: 1718 | D32: 乌龟山 | E32: 3、4组刘福八湾 | F32: 3.08 | G32: 16 | H32: 49.28 | I32: 公户 | K32: 集体
A33: 茗山乡 | B33: 柯畈村 | C33: 1719 | D33: 乌龟山 | E33: 3、4组刘福八湾 | F33: 2.22 | G33: 16 | H33: 35.52 | I33: 公户 | K33: 集体
A34: 茗山乡 | B34: 柯畈村 | C34: 1720 | D34: 细宫台山 | E34: 柯畈村 | F34: 5.73 | G34: 16 | H34: 91.68 | I34: 公户 | K34: 集体
A35: 茗山乡 | B35: 柯畈村 | C35: 1721 | D35: 细宫台山 | E35: 柯畈村 | F35: 19.95 | G35: 16 | H35: 319.2 | I35: 公户 | K35: 集体
A36: 茗山乡 | B36: 柯畈村 | C36: 1722 | D36: 细宫台山 | E36: 柯畈村 | F36: 22.72 | G36: 16 | H36: 363.52 | I36: 公户 | K36: 集体
A37: 茗山乡 | B37: 柯畈村 | C37: 1723 | D37: 细宫台山 | E37: 柯畈村 | F37: 5.24 | G37: 16 | H37: 83.84 | I37: 公户 | K37: 集体
A38: 茗山乡 | B38: 柯畈村 | C38: 1724 | D38: 大宫台山 | E38: 柯畈村 | F38: 6.22 | G38: 16 | H38: 99.52 | I38: 公户 | K38: 集体
A39: 茗山乡 | B39: 柯畈村 | C39: 1725 | D39: 细宫台山 | E39: 柯畈村 | F39: 1.84 | G39: 16 | H39: 29.44 | I39: 公户 | K39: 集体
A40: 茗山乡 | B40: 柯畈村 | C40: 1726 | D40: 高梁山 | E40: 1组陈戊湾 | F40: 1.61 | G40: 16 | H40: 25.76 | I40: 公户 | K40: 集体
A41: 茗山乡 | B41: 柯畈村 | C41: 1727 | D41: 高梁山 | E41: 1组陈戊湾 | F41: 1.71 | G41: 16 | H41: 27.36 | I41: 公户 | K41: 集体
A42: 茗山乡 | B42: 柯畈村 | C42: 1728 | D42: 高梁山 | E42: 1组陈戊湾 | F42: 51.1 | G42: 16 | H42: 817.6 | I42: 公户 | K42: 集体
A43: 茗山乡 | B43: 柯畈村 | C43: 1729 | D43: 高梁山 | E43: 1组陈戊湾 | F43: 8.21 | G43: 16 | H43: 131.36 | I43: 公户 | K43: 集体
A44: 茗山乡 | B44: 柯畈村 | C44: 1730 | D44: 高梁山 | E44: 1组陈戊湾 | F44: 16.63 | G44: 16 | H44: 266.08 | I44: 公户 | K44: 集体
A45: 茗山乡 | B45: 柯畈村 | C45: 1731 | D45: 后背山 | E45: 1组陈戊湾 | F45: 74.87 | G45: 16 | H45: 1197.92 | I45: 公户 | K45: 集体
A46: 茗山乡 | B46: 柯畈村 | C46: 1732 | D46: 庙儿山 | E46: 1组陈戊湾 | F46: 90.36 | G46: 16 | H46: 1445.76 | I46: 公户 | K46: 集体
A47: 茗山乡 | B47: 柯畈村 | C47: 1733 | D47: 后背山 | E47: 1组陈戊湾 | F47: 8.28 | G47: 16 | H47: 132.48 | I47: 公户 | K47: 集体
A48: 茗山乡 | B48: 柯畈村 | C48: 1734 | D48: 后背山 | E48: 1组陈戊湾 | F48: 1.57 | G48: 16 | H48: 25.12 | I48: 公户 | K48: 集体
A49: 茗山乡 | B49: 柯畈村 | C49: 1735 | D49: 大窝中坜儿 | E49: 5组柯丰斗湾 | F49: 152.03 | G49: 16 | H49: 2432.48 | I49: 公户 | K49: 集体
A50: 茗山乡 | B50: 柯畈村 | C50: 1736 | D50: 大窝中坜儿 | E50: 5组柯丰斗湾 | F50: 3.87 | G50: 16 | H50: 61.92 | I50: 公户 | K50: 集体
A51: 茗山乡 | B51: 柯畈村 | C51: 1737 | D51: 后背山 | E51: 1组陈戊湾 | F51: 3.37 | G51: 16 | H51: 53.92 | I51: 公户 | K51: 集体
A52: 茗山乡 | B52: 柯畈村 | C52: 1738 | D52: 庙儿山 | E52: 1组陈戊湾 | F52: 6.28 | G52: 16 | H52: 100.48 | I52: 公户 | K52: 集体
A53: 茗山乡 | B53: 柯畈村 | C53: 1739 | D53: 庙儿山 | E53: 1组陈戊湾 | F53: 2.03 | G53: 16 | H53: 32.48 | I53: 公户 | K53: 集体
A54: 茗山乡 | B54: 柯畈村 | C54: 1740 | D54: 杨朋山 | E54: 1组陈戊湾 | F54: 1.78 | G54: 16 | H54: 28.48 | I54: 公户 | K54: 集体
A55: 茗山乡 | B55: 柯畈村 | C55: 1741 | D55: 坟牌垴 | E55: 5组柯丰斗湾 | F55: 5.53 | G55: 16 | H55: 88.48 | I55: 公户 | K55: 集体
A56: 茗山乡 | B56: 柯畈村 | C56: 1742 | D56: 坟牌垴 | E56: 5组柯丰斗湾 | F56: 43.02 | G56: 16 | H56: 688.32 | I56: 公户 | K56: 集体
A57: 茗山乡 | B57: 柯畈村 | C57: 1743 | D57: 华山 | E57: 3、4组刘福八湾 | F57: 57.63 | G57: 16 | H57: 922.08 | I57: 公户 | K57: 集体
A58: 茗山乡 | B58: 柯畈村 | C58: 1744 | D58: 华山 | E58: 3、4组刘福八湾 | F58: 2.03 | G58: 16 | H58: 32.48 | I58: 公户 | K58: 集体
A59: 茗山乡 | B59: 柯畈村 | C59: 1745 | D59: 华山 | E59: 3、4组刘福八湾 | F59: 1.92 | G59: 16 | H59: 30.72 | I59: 公户 | K59: 集体
A60: 茗山乡 | B60: 柯畈村 | C60: 1746 | D60: 老虎洞 | E60: 5组柯丰斗湾 | F60: 3.46 | G60: 16 | H60: 55.36 | I60: 公户 | K60: 集体
A61: 茗山乡 | B61: 柯畈村 | C61: 1747 | D61: 马头山尾 | E61: 3、4组刘福八湾 | F61: 1.68 | G61: 16 | H61: 26.88 | I61: 公户 | K61: 集体
A62: 茗山乡 | B62: 柯畈村 | C62: 1748 | D62: 马头山尾 | E62: 3、4组刘福八湾 | F62: 1.51 | G62: 16 | H62: 24.16 | I62: 公户 | K62: 集体
A63: 茗山乡 | B63: 柯畈村 | C63: 1749 | D63: 马头山尾 | E63: 3、4组刘福八湾 | F63: 33.97 | G63: 16 | H63: 543.52 | I63: 公户 | K63: 集体
A64: 茗山乡 | B64: 柯畈村 | C64: 1750 | D64: 老虎洞 | E64: 5组柯丰斗湾 | F64: 2 | G64: 16 | H64: 32 | I64: 公户 | K64: 集体
A65: 茗山乡 | B65: 柯畈村 | C65: 1751 | D65: 老虎洞 | E65: 5组柯丰斗湾 | F65: 10 | G65: 16 | H65: 160 | I65: 公户 | K65: 集体
A66: 茗山乡 | B66: 柯畈村 | C66: 1752 | D66: 老虎洞 | E66: 5组柯丰斗湾 | F66: 9.88 | G66: 16 | H66: 158.08 | I66: 公户 | K66: 集体
A67: 茗山乡 | B67: 柯畈村 | C67: 1753 | D67: 老虎洞 | E67: 5组柯丰斗湾 | F67: 48.11 | G67: 16 | H67: 769.76 | I67: 公户 | K67: 集体
A68: 茗山乡 | B68: 柯畈村 | C68: 1754 | D68: 刘福八后山 | E68: 3、4组刘福八湾 | F68: 12.04 | G68: 16 | H68: =ROUND(F68*G68,2) -> 192.64 | I68: 公户 | K68: 集体
A69: 茗山乡 | B69: 柯畈村 | C69: 1755 | D69: 刘福八后山 | E69: 3、4组刘福八湾 | F69: 2.33 | G69: 16 | H69: 37.28 | I69: 公户 | K69: 集体
A70: 茗山乡 | B70: 柯畈村 | C70: 1756 | D70: 刘福八后山 | E70: 3、4组刘福八湾 | F70: 2.63 | G70: 16 | H70: 42.08 | I70: 公户 | K70: 集体
A71: 茗山乡 | B71: 柯畈村 | C71: 1757 | D71: 刘福八后山 | E71: 3、4组刘福八湾 | F71: 8.15 | G71: 16 | H71: 130.4 | I71: 公户 | K71: 集体
A72: 茗山乡 | B72: 柯畈村 | C72: 1758 | D72: 刘福八后山 | E72: 3、4组刘福八湾 | F72: 10.45 | G72: 16 | H72: 167.2 | I72: 公户 | K72: 集体
A73: 茗山乡 | B73: 柯畈村 | C73: 1759 | D73: 刘福八后山 | E73: 3、4组刘福八湾 | F73: 45.07 | G73: 16 | H73: 721.12 | I73: 公户 | K73: 集体
A74: 茗山乡 | B74: 柯畈村 | C74: 1760 | D74: 刘福八后山 | E74: 3、4组刘福八湾 | F74: 1.66 | G74: 16 | H74: 26.56 | I74: 公户 | K74: 集体
A75: 茗山乡 | B75: 柯畈村 | C75: 1761 | D75: 刘福八后山 | E75: 3、4组刘福八湾 | F75: 6.74 | G75: 16 | H75: 107.84 | I75: 公户 | K75: 集体
A76: 茗山乡 | B76: 茗山村 | C76: 1762 | D76: 矿粉厂山 | E76: 3组许必明 | F76: 14.15 | G76: 16 | H76: 226.4 | I76: 公户 | K76: 集体
A77: 茗山乡 | B77: 茗山村 | C77: 1762 | D77: 矿粉厂山 | E77: 4组许必明 | F77: 11 | G77: 16 | H77: 176 | I77: 公户 | K77: 集体
A78: 茗山乡 | B78: 茗山村 | C78: 1763 | D78: 柯龙洞 | E78: 5组许孔曼 | F78: 1.96 | G78: 16 | H78: 31.36 | I78: 公户 | K78: 集体
A79: 茗山乡 | B79: 茗山村 | C79: 1764 | D79: 竹林山 | E79: 5组许孔曼 | F79: 9.26 | G79: 16 | H79: 148.16 | I79: 公户 | K79: 集体
A80: 茗山乡 | B80: 茗山村 | C80: 1765 | D80: 竹林山 | E80: 5组许孔曼 | F80: 3.5 | G80: 16 | H80: 56 | I80: 公户 | K80: 集体
A81: 茗山乡 | B81: 茗山村 | C81: 1765 | D81: 竹林山 | E81: 2组许必冲 | F81: 2.4 | G81: 16 | H81: 38.4 | I81: 公户 | K81: 集体
A82: 茗山乡 | B82: 茗山村 | C82: 1766 | D82: 天门坎 | E82: 5组许孔曼 | F82: 1.73 | G82: 16 | H82: 27.68 | I82: 公户 | K82: 集体
A83: 茗山乡 | B83: 茗山村 | C83: 1767 | D83: 柯龙洞 | E83: 2组许必冲 | F83: 43.42 | G83: 16 | H83: 694.72 | I83: 公户 | K83: 集体
A84: 茗山乡 | B84: 茗山村 | C84: 1767 | D84: 柯龙洞 | E84: 1组许必冲 | F84: 29.45 | G84: 16 | H84: 471.2 | I84: 公户 | K84: 集体
A85: 茗山乡 | B85: 茗山村 | C85: 1768 | D85: 芽山 | E85: 3组许必明 | F85: 1.13 | G85: 16 | H85: 18.08 | I85: 公户 | K85: 集体
A86: 茗山乡 | B86: 茗山村 | C86: 1768 | D86: 芽山 | E86: 4组许必明 | F86: 0.82 | G86: 16 | H86: 13.12 | I86: 公户 | K86: 集体
A87: 茗山乡 | B87: 茗山村 | C87: 1769 | D87: 柯龙洞 | E87: 5组许孔曼 | F87: 3.27 | G87: 16 | H87: 52.32 | I87: 公户 | K87: 集体
A88: 茗山乡 | B88: 茗山村 | C88: 1770 | D88: 竹林山 | E88: 5组许孔曼 | F88: 1.72 | G88: 16 | H88: 27.52 | I88: 公户 | K88: 集体 | N88: 0
A89: 茗山乡 | B89: 茗山村 | C89: 1771 | D89: 竹林山 | E89: 5组许孔曼 | F89: 1 | G89: 16 | H89: 16 | I89: 公户 | K89: 集体
A90: 茗山乡 | B90: 茗山村 | C90: 1771 | D90: 竹林山 | E90: 2组许必冲 | F90: 0.82 | G90: 16 | H90: 13.12 | I90: 公户 | K90: 集体
A91: 茗山乡 | B91: 茗山村 | C91: 1772 | D91: 竹林山 | E91: 5组许孔曼 | F91: 1.84 | G91: 16 | H91: 29.44 | I91: 公户 | K91: 集体
A92: 茗山乡 | B92: 茗山村 | C92: 1773 | D92: 竹林山 | E92: 5组许孔曼 | F92: 2.13 | G92: 16 | H92: 34.08 | I92: 公户 | K92: 集体
A93: 茗山乡 | B93: 茗山村 | C93: 1774 | D93: 竹林山 | E93: 2组许必冲 | F93: 25.35 | G93: 16 | H93: 405.6 | I93: 公户 | K93: 集体
A94: 茗山乡 | B94: 茗山村 | C94: 1774 | D94: 竹林山 | E94: 5组许孔曼 | F94: 40.5 | G94: 16 | H94: 648 | I94: 公户 | K94: 集体
A95: 茗山乡 | B95: 茗山村 | C95: 1775 | D95: 芽山 | E95: 3组许必明 | F95: 55 | G95: 16 | H95: 880 | I95: 公户 | K95: 集体
A96: 茗山乡 | B96: 茗山村 | C96: 1775 | D96: 芽山 | E96: 1组许必冲 | F96: 32.4 | G96: 16 | H96: 518.4 | I96: 公户 | K96: 集体
A97: 茗山乡 | B97: 茗山村 | C97: 1776 | D97: 竹林山 | E97: 5组许孔曼 | F97: 5.51 | G97: 16 | H97: 88.16 | I97: 公户 | K97: 集体
A98: 茗山乡 | B98: 茗山村 | C98: 1777 | D98: 贵儿垴 | E98: 2组许必冲 | F98: 70 | G98: 16 | H98: 1120 | I98: 公户 | K98: 集体
A99: 茗山乡 | B99: 茗山村 | C99: 1777 | D99: 贵儿垴 | E99: 1组许必冲 | F99: 30.53 | G99: 16 | H99: 488.48 | I99: 公户 | K99: 集体
A100: 茗山乡 | B100: 茗山村 | C100: 1778 | D100: 后楼山 | E100: 2组许必冲 | F100: 18 | G100: 16 | H100: 288 | I100: 公户 | K100: 集体
A101: 茗山乡 | B101: 茗山村 | C101: 1778 | D101: 后楼山 | E101: 1组许必冲 | F101: 9.59 | G101: 16 | H101: 153.44 | I101: 公户 | K101: 集体
A102: 茗山乡 | B102: 茗山村 | C102: 1779 | D102: 后茗山 | E102: 2组许必冲 | F102: 35.65 | G102: 16 | H102: 570.4 | I102: 公户 | K102: 集体
A103: 茗山乡 | B103: 茗山村 | C103: 1779 | D103: 后茗山 | E103: 1组许必冲 | F103: 7 | G103: 16 | H103: 112 | I103: 公户 | K103: 集体
A104: 茗山乡 | B104: 茗山村 | C104: 1780 | D104: 贵二垴 | E104: 5组许孔曼 | F104: 11.43 | G104: 16 | H104: 182.88 | I104: 公户 | K104: 集体
A105: 茗山乡 | B105: 茗山村 | C105: 1781 | D105: 芽山 | E105: 5组许孔曼 | F105: 5.99 | G105: 16 | H105: 95.84 | I105: 公户 | K105: 集体
A106: 茗山乡 | B106: 茗山村 | C106: 1782 | D106: 贵儿垴 | E106: 5组许孔曼 | F106: 9.42 | G106: 16 | H106: 150.72 | I106: 公户 | K106: 集体
A107: 茗山乡 | B107: 茗山村 | C107: 1782 | D107: 贵儿垴 | E107: 2组许必冲 | F107: 4 | G107: 16 | H107: 64 | I107: 公户 | K107: 集体
A108: 茗山乡 | B108: 茗山村 | C108: 1783 | D108: 拖把标 | E108: 2组许必冲 | F108: 4.97 | G108: 16 | H108: 79.52 | I108: 公户 | K108: 集体
A109: 茗山乡 | B109: 茗山村 | C109: 1784 | D109: 拖把标 | E109: 2组许必冲 | F109: 11.38 | G109: 16 | H109: 182.08 | I109: 公户 | K109: 集体
A110: 茗山乡 | B110: 茗山村 | C110: 1785 | D110: 前茗山 | E110: 2组许必冲 | F110: 4.97 | G110: 16 | H110: 79.52 | I110: 公户 | K110: 集体
A111: 茗山乡 | B111: 茗山村 | C111: 1786 | D111: 拖把标 | E111: 2组许必冲 | F111: 5.43 | G111: 16 | H111: 86.88 | I111: 公户 | K111: 集体
A112: 茗山乡 | B112: 茗山村 | C112: 1787 | D112: 拖把标 | E112: 2组许必冲 | F112: 13.72 | G112: 16 | H112: 219.52 | I112: 公户 | K112: 集体
A113: 茗山乡 | B113: 茗山村 | C113: 1788 | D113: 芽山 | E113: 2组许必冲 | F113: 1.8 | G113: 16 | H113: 28.8 | I113: 公户 | K113: 集体
A114: 茗山乡 | B114: 茗山村 | C114: 1789 | D114: 芽山 | E114: 2组许必冲 | F114: 1.32 | G114: 16 | H114: 21.12 | I114: 公户 | K114: 集体
A115: 茗山乡 | B115: 茗山村 | C115: 1790 | D115: 芽山 | E115: 5组许孔曼 | F115: 0.35 | G115: 16 | H115: 5.6 | I115: 公户 | K115: 集体
A116: 茗山乡 | B116: 茗山村 | C116: 1790 | D116: 芽山 | E116: 2组许必冲 | F116: 0.5 | G116: 16 | H116: 8 | I116: 公户 | K116: 集体
A117: 茗山乡 | B117: 上汪村 | C117: 1791 | D117: 太阳山 | E117: 上汪村猫儿颈湾 | F117: 4.55 | G117: 16 | H117: 72.8 | I117: 公户 | K117: 集体
A118: 茗山乡 | B118: 上汪村 | C118: 1792 | D118: 太阳山 | E118: 上汪村猫儿颈湾 | F118: 13.1 | G118: 16 | H118: 209.6 | I118: 公户 | K118: 集体
A119: 茗山乡 | B119: 上汪村 | C119: 1793 | D119: 太阳山 | E119: 上汪村猫儿颈湾 | F119: 51.34 | G119: 16 | H119: 821.44 | I119: 公户 | K119: 集体
A120: 茗山乡 | B120: 上汪村 | C120: 1794 | D120: 太阳山 | E120: 上汪村猫儿颈湾 | F120: 2.9 | G120: 16 | H120: 46.4 | I120: 公户 | K120: 集体
A121: 茗山乡 | B121: 上汪村 | C121: 1795 | D121: 太阳山 | E121: 上汪村猫儿颈湾 | F121: 13.37 | G121: 16 | H121: 213.92 | I121: 公户 | K121: 集体
A122: 茗山乡 | B122: 上汪村 | C122: 1796 | D122: 太阳山 | E122: 上汪村猫儿颈湾 | F122: 34.28 | G122: 16 | H122: 548.48 | I122: 公户 | K122: 集体
A123: 茗山乡 | B123: 上汪村 | C123: 1797 | D123: 太阳山 | E123: 上汪村猫儿颈湾 | F123: 2.16 | G123: 16 | H123: 34.56 | I123: 公户 | K123: 集体
A124: 茗山乡 | B124: 上汪村 | C124: 1798 | D124: 太阳山 | E124: 上汪村猫儿颈湾 | F124: 5.51 | G124: 16 | H124: 88.16 | I124: 公户 | K124: 集体
A125: 茗山乡 | B125: 上汪村 | C125: 1799 | D125: 太阳山 | E125: 上汪村猫儿颈湾 | F125: 2.03 | G125: 16 | H125: 32.48 | I125: 公户 | K125: 集体
A126: 茗山乡 | B126: 上汪村 | C126: 1800 | D126: 太阳山 | E126: 上汪村猫儿颈湾 | F126: 14.9 | G126: 16 | H126: 238.4 | I126: 公户 | K126: 集体
A127: 茗山乡 | B127: 上汪村 | C127: 1801 | D127: 太阳山 | E127: 上汪村猫儿颈湾 | F127: 26.87 | G127: 16 | H127: 429.92 | I127: 公户 | K127: 集体
A128: 茗山乡 | B128: 上汪村 | C128: 1802 | D128: 太阳山 | E128: 上汪村猫儿颈湾 | F128: 5.94 | G128: 16 | H128: 95.04 | I128: 公户 | K128: 集体
A129: 茗山乡 | B129: 上汪村 | C129: 1803 | D129: 太阳山 | E129: 上汪村猫儿颈湾 | F129: 39.14 | G129: 16 | H129: 626.24 | I129: 公户 | K129: 集体
A130: 茗山乡 | B130: 上汪村 | C130: 1804 | D130: 太阳山 | E130: 上汪村猫儿颈湾 | F130: 8.13 | G130: 16 | H130: 130.08 | I130: 公户 | K130: 集体
A131: 茗山乡 | B131: 天一村 | C131: 1805 | D131: 柯隆让后背山 | E131: 柯隆让湾 | F131: 7.2 | G131: 16 | H131: 115.2 | I131: 公户 | K131: 集体
A132: 茗山乡 | B132: 天一村 | C132: 1806 | D132: 柯隆让后背山 | E132: 柯隆让湾 | F132: 55.28 | G132: 16 | H132: =ROUND(F132*G132,2) -> 884.48 | I132: 公户 | K132: 集体
A133: 茗山乡 | B133: 天一村 | C133: 1807 | D133: 柯隆让后背山 | E133: 柯隆让湾 | F133: 2.18 | G133: 16 | H133: 34.88 | I133: 公户 | K133: 集体
A134: 茗山乡 | B134: 天一村 | C134: 1808 | D134: 柯隆让后背山 | E134: 柯隆让湾 | F134: 7.04 | G134: 16 | H134: 112.64 | I134: 公户 | K134: 集体
A135: 茗山乡 | B135: 天一村 | C135: 1809 | D135: 柯隆让后背山 | E135: 柯隆让湾 | F135: 19.57 | G135: 16 | H135: 313.12 | I135: 公户 | K135: 集体
A136: 茗山乡 | B136: 天一村 | C136: 1810 | D136: 柯隆让后背山 | E136: 柯隆让湾 | F136: 10.02 | G136: 16 | H136: 160.32 | I136: 公户 | K136: 集体
A137: 茗山乡 | B137: 天一村 | C137: 1811 | D137: 柯隆让后背山 | E137: 柯隆让湾 | F137: 1.64 | G137: 16 | H137: 26.24 | I137: 公户 | K137: 集体
A138: 茗山乡 | B138: 天一村 | C138: 1812 | D138: 柯隆让后背山 | E138: 柯隆让湾 | F138: 10.99 | G138: 16 | H138: 175.84 | I138: 公户 | K138: 集体
A139: 茗山乡 | B139: 天一村 | C139: 1813 | D139: 柯隆让后背山 | E139: 柯隆让湾 | F139: 1.92 | G139: 16 | H139: 30.72 | I139: 公户 | K139: 集体
A140: 茗山乡 | B140: 天一村 | C140: 1814 | D140: 柯隆让后背山 | E140: 柯隆让湾 | F140: 6.79 | G140: 16 | H140: 108.64 | I140: 公户 | K140: 集体
A141: 茗山乡 | B141: 天一村 | C141: 1815 | D141: 柯隆让后背山 | E141: 柯隆让湾 | F141: 14.09 | G141: 16 | H141: 225.44 | I141: 公户 | K141: 集体
A142: 茗山乡 | B142: 天一村 | C142: 1816 | D142: 下黄、柯隆让 | E142: 下黄湾 | F142: 23.55 | G142: 16 | H142: 376.8 | I142: 公户 | K142: 集体
A143: 茗山乡 | B143: 天一村 | C143: 1816 | D143: 下黄、柯隆让 | E143: 柯隆让湾 | F143: 100 | G143: 16 | H143: 1600 | I143: 公户 | K143: 集体
A144: 茗山乡 | B144: 天一村 | C144: 1817 | D144: 柯隆让 | E144: 柯隆让湾 | F144: 5.34 | G144: 16 | H144: 85.44 | I144: 公户 | K144: 集体
A145: 茗山乡 | B145: 天一村 | C145: 1818 | D145: 下黄 | E145: 下黄湾 | F145: 47.17 | G145: 16 | H145: 754.72 | I145: 公户 | K145: 集体
A146: 茗山乡 | B146: 天一村 | C146: 1819 | D146: 下黄 | E146: 下黄湾 | F146: 2.64 | G146: 16 | H146: 42.24 | I146: 公户 | K146: 集体
A147: 茗山乡 | B147: 天一村 | C147: 1820 | D147: 天一湾、何文益 | E147: 天一湾 | F147: 7.89 | G147: 16 | H147: 126.24 | I147: 公户 | K147: 集体
A148: 茗山乡 | B148: 天一村 | C148: 1820 | D148: 天一湾、何文益 | E148: 何文益湾 | F148: 94.4 | G148: 16 | H148: 1510.4 | I148: 公户 | K148: 集体
A149: 茗山乡 | B149: 天一村 | C149: 1821 | D149: 知青点 | E149: 下黄湾 | F149: 29.81 | G149: 16 | H149: 476.96 | I149: 公户 | K149: 集体
A150: 茗山乡 | B150: 天一村 | C150: 1822 | D150: 知青点 | E150: 下黄湾 | F150: 25.5 | G150: 16 | H150: 408 | I150: 公户 | K150: 集体
A151: 茗山乡 | B151: 天一村 | C151: 1823 | D151: 彭家晚 | E151: 山背吴湾 | F151: 46.93 | G151: 16 | H151: 750.88 | I151: 公户 | K151: 集体
A152: 茗山乡 | B152: 天一村 | C152: 1824 | D152: 彭家晚 | E152: 柯隆让湾 | F152: 14.64 | G152: 16 | H152: 234.24 | I152: 公户 | K152: 集体
A153: 茗山乡 | B153: 天一村 | C153: 1824 | D153: 彭家晚 | E153: 下黄湾 | F153: 11.83 | G153: 16 | H153: 189.28 | I153: 公户 | K153: 集体
A154: 茗山乡 | B154: 天一村 | C154: 1825 | D154: 小茗山 | E154: 天一湾 | F154: 43.55 | G154: 16 | H154: 696.8 | I154: 公户 | K154: 集体
A155: 茗山乡 | B155: 天一村 | C155: 1826 | D155: 小茗山 | E155: 天一湾 | F155: 4.81 | G155: 16 | H155: 76.96 | I155: 公户 | K155: 集体
A156: 茗山乡 | B156: 天一村 | C156: 1827 | D156: 知青点 | E156: 下黄湾 | F156: 28.11 | G156: 16 | H156: 449.76 | I156: 公户 | K156: 集体
A157: 茗山乡 | B157: 天一村 | C157: 1828 | D157: 小茗山 | E157: 天一湾 | F157: 75.03 | G157: 16 | H157: 1200.48 | I157: 公户 | K157: 集体
A158: 茗山乡 | B158: 天一村 | C158: 1829 | D158: 下黄背后山 | E158: 下黄湾 | F158: 20.41 | G158: 16 | H158: 326.56 | I158: 公户 | K158: 集体
A159: 茗山乡 | B159: 天一村 | C159: 1830 | D159: 小茗山 | E159: 天一湾 | F159: 1.75 | G159: 16 | H159: 28 | I159: 公户 | K159: 集体
A160: 茗山乡 | B160: 天一村 | C160: 1831 | D160: 彭家晚 | E160: 山背吴湾 | F160: 1.8 | G160: 16 | H160: 28.8 | I160: 公户 | K160: 集体
A161: 茗山乡 | B161: 天一村 | C161: 1832 | D161: 小茗山、彭家晚 | E161: 天一湾 | F161: 40.35 | G161: 16 | H161: 645.6 | I161: 公户 | K161: 集体
A162: 茗山乡 | B162: 天一村 | C162: 1832 | D162: 小茗山、彭家晚 | E162: 山背吴湾 | F162: 140.38 | G162: 16 | H162: 2246.08 | I162: 公户 | K162: 集体
A163: 茗山乡 | B163: 天一村 | C163: 1833 | D163: 小茗山 | E163: 天一湾 | F163: 34.99 | G163: 16 | H163: 559.84 | I163: 公户 | K163: 集体
A164: 茗山乡 | B164: 天一村 | C164: 1833 | D164: 小茗山 | E164: 石头洪湾 | F164: 70.1 | G164: 16 | H164: 1121.6 | I164: 公户 | K164: 集体
A165: 茗山乡 | B165: 天一村 | C165: 1834 | D165: 彭家晚 | E165: 山背吴湾 | F165: 85.99 | G165: 16 | H165: 1375.84 | I165: 公户 | K165: 集体
A166: 茗山乡 | B166: 天一村 | C166: 1835 | D166: 天一湾 | E166: 天一湾 | F166: 1.69 | G166: 16 | H166: 27.04 | I166: 公户 | K166: 集体
A167: 茗山乡 | B167: 天一村 | C167: 1836 | D167: 彭家晚 | E167: 山背吴湾 | F167: 2.04 | G167: 16 | H167: 32.64 | I167: 公户 | K167: 集体
A168: 茗山乡 | B168: 天一村 | C168: 1837 | D168: 彭家晚 | E168: 山背吴湾 | F168: 3.71 | G168: 16 | H168: 59.36 | I168: 公户 | K168: 集体
A169: 茗山乡 | B169: 天一村 | C169: 1838 | D169: 彭家晚 | E169: 山背吴湾 | F169: 4.55 | G169: 16 | H169: 72.8 | I169: 公户 | K169: 集体
A170: 茗山乡 | B170: 天一村 | C170: 1839 | D170: 小茗山 | E170: 天一湾 | F170: 3.91 | G170: 16 | H170: 62.56 | I170: 公户 | K170: 集体
A171: 茗山乡 | B171: 天一村 | C171: 1840 | D171: 下黄 | E171: 下黄湾 | F171: 27.71 | G171: 16 | H171: 443.36 | I171: 公户 | K171: 集体
A172: 茗山乡 | B172: 天一村 | C172: 1841 | D172: 下黄 | E172: 下黄湾 | F172: 29.3 | G172: 16 | H172: 468.8 | I172: 公户 | K172: 集体
A173: 茗山乡 | B173: 天一村 | C173: 1842 | D173: 下黄 | E173: 下黄湾 | F173: 41.67 | G173: 16 | H173: 666.72 | I173: 公户 | K173: 集体
A174: 茗山乡 | B174: 天一村 | C174: 1843 | D174: 下黄 | E174: 下黄湾 | F174: 2.98 | G174: 16 | H174: 47.68 | I174: 公户 | K174: 集体
A175: 茗山乡 | B175: 天一村 | C175: 1844 | D175: 下黄 | E175: 下黄湾 | F175: 4.64 | G175: 16 | H175: 74.24 | I175: 公户 | K175: 集体
A176: 茗山乡 | B176: 天一村 | C176: 1845 | D176: 马堪 | E176: 天一湾 | F176: 15.52 | G176: 16 | H176: 248.32 | I176: 公户 | K176: 集体
A177: 茗山乡 | B177: 天一村 | C177: 1846 | D177: 小茗山 | E177: 天一湾 | F177: 50.39 | G177: 16 | H177: 806.24 | I177: 公户 | K177: 集体
A178: 茗山乡 | B178: 天一村 | C178: 1847 | D178: 下黄后背山 | E178: 下黄湾 | F178: 75.41 | G178: 16 | H178: 1206.56 | I178: 公户 | K178: 集体
A179: 茗山乡 | B179: 天一村 | C179: 1848 | D179: 马尾、大堰咀、小茗山尖 | E179: 天一湾 | F179: 157.33 | G179: 16 | H179: 2517.28 | I179: 公户 | K179: 集体
A180: 茗山乡 | B180: 天一村 | C180: 1849 | D180: 马尾、大堰咀、小茗山尖 | E180: 天一湾 | F180: 150.06 | G180: 16 | H180: 2400.96 | I180: 公户 | K180: 集体
A181: 茗山乡 | B181: 天一村 | C181: 1850 | D181: 张家窑 | E181: 天一湾 | F181: 2.8 | G181: 16 | H181: 44.8 | I181: 公户 | K181: 集体
A182: 茗山乡 | B182: 天一村 | C182: 1851 | D182: 杨家山 | E182: 下黄湾 | F182: 26.36 | G182: 16 | H182: 421.76 | I182: 公户 | K182: 集体
A183: 茗山乡 | B183: 天一村 | C183: 1851 | D183: 杨家山 | E183: 上黄湾 | F183: 40 | G183: 16 | H183: 640 | I183: 公户 | K183: 集体
A184: 茗山乡 | B184: 天一村 | C184: 1852 | D184: 马头 | E184: 天一湾 | F184: 1.46 | G184: 16 | H184: 23.36 | I184: 公户 | K184: 集体
A185: 茗山乡 | B185: 天一村 | C185: 1852 | D185: 马头 | E185: 上黄湾 | F185: 10 | G185: 16 | H185: 160 | I185: 公户 | K185: 集体
A186: 茗山乡 | B186: 天一村 | C186: 1853 | D186: 天一湾 | E186: 天一湾 | F186: 9.16 | G186: 16 | H186: 146.56 | I186: 公户 | K186: 集体
A187: 茗山乡 | B187: 天一村 | C187: 1854 | D187: 天一湾 | E187: 天一湾 | F187: 7.16 | G187: 16 | H187: 114.56 | I187: 公户 | K187: 集体
A188: 茗山乡 | B188: 天一村 | C188: 1855 | D188: 小茗山 | E188: 天一湾 | F188: 11.56 | G188: 16 | H188: 184.96 | I188: 公户 | K188: 集体
A189: 茗山乡 | B189: 天一村 | C189: 1856 | D189: 柯山角、马腰 | E189: 天一湾 | F189: 95.73 | G189: 16 | H189: 1531.68 | I189: 公户 | K189: 集体
A190: 茗山乡 | B190: 天一村 | C190: 1857 | D190: 大潜、小潜、对门山 | E190: 上黄湾 | F190: 9.74 | G190: 16 | H190: 155.84 | I190: 公户 | K190: 集体
A191: 茗山乡 | B191: 天一村 | C191: 1858 | D191: 大潜、小潜、下黄对门山 | E191: 上黄湾 | F191: 44.86 | G191: 16 | H191: 717.76 | I191: 公户 | K191: 集体
A192: 茗山乡 | B192: 天一村 | C192: 1858 | D192: 大潜、小潜、下黄对门山 | E192: 下黄湾 | F192: 60 | G192: 16 | H192: 960 | I192: 公户 | K192: 集体
A193: 茗山乡 | B193: 天一村 | C193: 1859 | D193: 大潜、小潜、下黄对门山 | E193: 上黄湾 | F193: 31.7 | G193: 16 | H193: 507.2 | I193: 公户 | K193: 集体
A194: 茗山乡 | B194: 天一村 | C194: 1859 | D194: 大潜、小潜、下黄对门山 | E194: 下黄湾 | F194: 20 | G194: 16 | H194: 320 | I194: 公户 | K194: 集体
A195: 茗山乡 | B195: 天一村 | C195: 1860 | D195: 大潜、小潜、下黄对门山 | E195: 上黄湾 | F195: 13.2 | G195: 16 | H195: 211.2 | I195: 公户 | K195: 集体
A196: 茗山乡 | B196: 天一村 | C196: 1860 | D196: 大潜、小潜、下黄对门山 | E196: 下黄湾 | F196: 12 | G196: 16 | H196: =ROUND(F196*G196,2) -> 192 | I196: 公户 | K196: 集体
A197: 茗山乡 | B197: 天一村 | C197: 1861 | D197: 大潜、小潜、下黄对门山 | E197: 上黄湾 | F197: 4.99 | G197: 16 | H197: 79.84 | I197: 公户 | K197: 集体
A198: 茗山乡 | B198: 天一村 | C198: 1861 | D198: 大潜、小潜、下黄对门山 | E198: 下黄湾 | F198: 6 | G198: 16 | H198: 96 | I198: 公户 | K198: 集体
A199: 茗山乡 | B199: 天一村 | C199: 1862 | D199: 大潜、小潜、下黄对门山 | E199: 上黄湾 | F199: 1.59 | G199: 16 | H199: 25.44 | I199: 公户 | K199: 集体
A200: 茗山乡 | B200: 天一村 | C200: 1862 | D200: 大潜、小潜、下黄对门山 | E200: 下黄湾 | F200: 1.19 | G200: 16 | H200: 19.04 | I200: 公户 | K200: 集体
... 4366 more rows
